fUSD/lending_fUSD_20260616
["ID","MTS","AMOUNT","RATE_DAILY","PERIOD"]
[425133632,1781542255000,-500.0,0.00028194,2]
[425133634,1781542255000,-500.0,0.00028194,2]
[425133638,1781542255000,-500.0,0.00028194,2]
[425133640,1781542255000,-500.0,0.00028194,2]
[425133633,1781542255000,-500.0,0.00028194,2]
[425133639,1781542255000,-500.0,0.00028194,2]
[425133635,1781542255000,-500.0,0.00028194,2]
[425133641,1781542255000,-500.0,0.00028194,2]
[425133643,1781542255000,-500.0,0.00028194,2]
[425133644,1781542255000,-500.0,0.00028194,2]
[425133651,1781542255000,-396.19,0.00028199,2]
[425133646,1781542255000,-500.0,0.00028194,2]
[425133648,1781542255000,-625.0,0.00028194,2]
[425133649,1781542255000,-152.81,0.00028198,2]
[425133642,1781542255000,-500.0,0.00028194,2]
[425133645,1781542255000,-500.0,0.00028194,2]
[425133650,1781542255000,-573.4,0.00028199,2]
[425133683,1781542255000,-151.0,0.00028281,2]
[425133656,1781542255000,-573.4,0.00028208,2]
[425133678,1781542255000,-151.0,0.00028268,2]
[425133713,1781542255000,-536.0,0.00028493,2]
[425133702,1781542255000,-536.0,0.00028493,2]
[425133714,1781542255000,-536.0,0.00028493,2]
[425133710,1781542255000,-536.0,0.00028493,2]
[425133707,1781542255000,-536.0,0.00028493,2]
[425133705,1781542255000,-536.0,0.00028493,2]
[425133704,1781542255000,-536.0,0.00028493,2]
[425133712,1781542255000,-536.0,0.00028493,2]
[425133706,1781542255000,-536.0,0.00028493,2]
[425133708,1781542255000,-536.0,0.00028493,2]
[425133709,1781542255000,-536.0,0.00028493,2]
[425133711,1781542255000,-536.0,0.00028493,2]
[425133716,1781542255000,-536.0,0.00028493,2]
[425133715,1781542255000,-536.0,0.00028493,2]
[425133717,1781542255000,-536.0,0.00028493,2]
[425133720,1781542255000,-536.0,0.00028493,2]
[425133723,1781542255000,-500.0,0.00028493,2]
[425133724,1781542255000,-500.0,0.00028493,2]
[425133719,1781542255000,-536.0,0.00028493,2]
[425133718,1781542255000,-536.0,0.00028493,2]
[425133684,1781542255000,-151.0,0.00028281,2]
[425133703,1781542255000,-536.0,0.00028493,2]
[425133699,1781542255000,-536.0,0.00028493,2]
[425133722,1781542255000,-549.05936694,0.00028493,2]
[425133700,1781542255000,-536.0,0.00028493,2]
[425133696,1781542255000,-500.0,0.00028493,2]
[425133677,1781542255000,-151.49,0.00028268,2]
[425133680,1781542255000,-151.0,0.00028268,2]
[425133676,1781542255000,-151.0,0.00028268,2]
[425133681,1781542255000,-151.0,0.00028277,2]
[425133679,1781542255000,-151.0,0.00028268,2]
[425133686,1781542255000,-594.11,0.00028336,7]
[425133685,1781542255000,-153.96,0.00028322,30]
[425133687,1781542255000,-769.05,0.00028342,7]
[425133688,1781542255000,-153.96,0.00028387,2]
[425133682,1781542255000,-276.03,0.0002828,30]
[425133691,1781542255000,-153.96,0.00028452,7]
[425133689,1781542255000,-860.91,0.000284,7]
[425133701,1781542255000,-536.0,0.00028493,2]
[425133697,1781542255000,-500.0,0.00028493,2]
[425133721,1781542255000,-536.0,0.00028493,2]
[425133695,1781542255000,-500.0,0.00028493,2]
[425133692,1781542255000,-163.92,0.00028456,7]
[425133694,1781542255000,-276.03,0.00028486,7]
[425133690,1781542255000,-242.34,0.00028425,7]
[425133693,1781542255000,-322.51,0.00028481,7]
[425133698,1781542255000,-500.0,0.00028493,2]
[425133743,1781542256000,-423.5148649,0.00028531,2]
[425133747,1781542256000,-180.70875137,0.00028582,7]
[425133750,1781542256000,-369.40939087,0.00028584,7]
[425133740,1781542256000,-570.45,0.000285,7]
[425133746,1781542256000,-153.96,0.00028582,2]
[425133745,1781542256000,-769.05,0.00028566,2]
[425133749,1781542256000,-174.74839706,0.00028582,7]
[425133756,1781542256000,-394.36035202,0.00028584,7]
[425133751,1781542256000,-197.84948022,0.00028584,7]
[425133761,1781542256000,-153.96,0.00028647,7]
[425133752,1781542256000,-325.91050469,0.00028584,5]
[425133759,1781542256000,-250000.0,0.000286,2]
[425133757,1781542256000,-688.49460835,0.0002859,2]
[425133744,1781542256000,-594.11,0.00028561,2]
[425133755,1781542256000,-400.19056222,0.00028584,7]
[425133754,1781542256000,-323.91942736,0.00028584,7]
[425133742,1781542256000,-153.96,0.00028517,30]
[425133732,1781542256000,-500.0,0.00028493,2]
[425133741,1781542256000,-173.36630682,0.00028511,7]
[425133758,1781542256000,-500.0,0.00028599,2]
[425133726,1781542256000,-500.0,0.00028493,2]
[425133727,1781542256000,-500.0,0.00028493,2]
[425133725,1781542256000,-500.0,0.00028493,2]
[425133729,1781542256000,-500.0,0.00028493,2]
[425133728,1781542256000,-500.0,0.00028493,2]
[425133730,1781542256000,-500.0,0.00028493,2]
[425133733,1781542256000,-500.0,0.00028493,2]
[425133736,1781542256000,-500.0,0.00028493,2]
[425133738,1781542256000,-500.0,0.00028493,2]
[425133731,1781542256000,-500.0,0.00028493,2]
[425133734,1781542256000,-500.0,0.00028493,2]
[425133735,1781542256000,-500.0,0.00028493,2]
[425133737,1781542256000,-500.0,0.00028493,2]
[425133739,1781542256000,-331.38948489,0.00028493,2]
[425133748,1781542256000,-162.97624728,0.00028582,7]
[425133760,1781542256000,-242.34,0.00028639,2]
[425133753,1781542256000,-312.9958211,0.00028584,2]
[425133766,1781542256000,-500.0,0.00028757,2]
[425133784,1781542256000,-151.0,0.00028877,7]
[425133789,1781542256000,-1208.62553117,0.0002888,3]
[425133785,1781542256000,-500.0,0.00028879,2]
[425133786,1781542256000,-500.0,0.00028879,2]
[425133788,1781542256000,-568968.39986654,0.0002888,3]
[425133787,1781542256000,-210.66,0.00028879,2]
[425133790,1781542256000,-152.31441447,0.00016194,2]
[425133792,1781542256000,-151.0,0.00027455,2]
[425133791,1781542256000,-17007.76,0.00027397,10]
[425133793,1781542256000,-151.0,0.00027459,2]
[425133794,1781542256000,-152.81,0.00028328,30]
[425133795,1781542256000,-152.81,0.00028392,2]
[425133796,1781542256000,-152.81,0.00028457,7]
[425133798,1781542256000,-152.81,0.00028586,2]
[425133762,1781542256000,-322.51,0.00028688,2]
[425133781,1781542256000,-242.34,0.00028853,30]
[425133778,1781542256000,-200.0,0.000288,2]
[425133779,1781542256000,-500.0,0.00028826,2]
[425133775,1781542256000,-594.11,0.00028786,30]
[425133767,1781542256000,-500.0,0.00028757,2]
[425133797,1781542256000,-152.81,0.00028522,30]
[425133763,1781542256000,-276.03,0.00028692,2]
[425133765,1781542256000,-153.96,0.00028712,30]
[425133764,1781542256000,-163.92,0.00028696,2]
[425133771,1781542256000,-153.96,0.00028777,2]
[425133776,1781542256000,-769.05,0.0002879,30]
[425133769,1781542256000,-2853.0007409,0.00028758,2]
[425133770,1781542256000,-21081.8972518,0.00028758,2]
[425133772,1781542256000,-22180.57164718,0.0002878,2]
[425133780,1781542256000,-153.96,0.00028842,7]
[425133782,1781542256000,-210.47831,0.00028855,2]
[425133783,1781542256000,-688.49460835,0.0002887,2]
[425133773,1781542256000,-156.02467393,0.0002878,5]
[425133777,1781542256000,-195.042,0.000288,19]
[425133774,1781542256000,-241.24618941,0.0002878,2]
[425133768,1781542256000,-322932.7285791,0.00028758,2]
[425133799,1781542257000,-152.81,0.00028651,7]
[425133801,1781542257000,-152.81,0.0002878,2]
[425133800,1781542257000,-152.81,0.00028715,30]
[425133803,1781542257000,-781.16923602,0.0002888,3]
[425133805,1781542257000,-256.39731343,0.0002888,3]
[425133802,1781542257000,-552323.32605616,0.0002888,3]
[425133806,1781542257000,-152.81,0.00028845,7]
[425133807,1781542257000,-517.99,0.0002888,3]
[425133808,1781542257000,-322.51,0.00028895,30]
[425133810,1781542257000,-153.96,0.00028907,30]
[425133809,1781542257000,-276.03,0.00028898,30]
[425133804,1781542257000,-623.81700724,0.0002888,3]
[425133811,1781542258000,-152.81,0.00028909,30]
[425133812,1781542258000,-163.92,0.00028936,30]
[425133813,1781542258000,-156.0,0.00029071,30]
[425133814,1781542258000,-153.96,0.00029102,30]
[425133816,1781542258000,-769.05,0.00029463,30]
[425133815,1781542258000,-594.11,0.00029461,30]
[425133818,1781542258000,-322.51,0.00029516,30]
[425133819,1781542258000,-276.03,0.00029517,30]
[425133820,1781542258000,-163.92,0.00029656,30]
[425133821,1781542258000,-156.0,0.00030071,30]
[425133822,1781542258000,-156.0,0.00031071,30]
[425133823,1781542258000,-156.0,0.00032071,30]
[425133817,1781542258000,-242.34,0.00029495,30]
[425133830,1781542259000,-151.0,0.00034984,30]
[425133824,1781542259000,-156.0,0.00033071,30]
[425133825,1781542259000,-169.23823831,0.000343,120]
[425133826,1781542259000,-530.06658189,0.0003465,120]
[425133827,1781542259000,-151.0,0.00034984,30]
[425133828,1781542259000,-151.0,0.00034984,30]
[425133829,1781542259000,-500.0,0.00034984,30]
[425133831,1781542259000,-500.0,0.00034984,30]
[425133836,1781542259000,-151.0,0.00034984,30]
[425133832,1781542259000,-151.0,0.00034984,30]
[425133834,1781542259000,-500.0,0.00034984,30]
[425133835,1781542259000,-500.0,0.00034984,30]
[425133837,1781542259000,-151.0,0.00034984,30]
[425133838,1781542259000,-500.0,0.00034984,30]
[425133840,1781542259000,-500.0,0.00034984,30]
[425133839,1781542259000,-152.0,0.00034984,30]
[425133841,1781542259000,-151.0,0.00034984,30]
[425133833,1781542259000,-500.0,0.00034984,30]
[425133849,1781542260000,-520.0,0.00034984,30]
[425133848,1781542260000,-267.17282765,0.00034984,30]
[425133847,1781542260000,-151.0,0.00034984,30]
[425133846,1781542260000,-500.0,0.00034984,30]
[425133842,1781542260000,-151.0,0.00034984,30]
[425133844,1781542260000,-500.0,0.00034984,30]
[425133843,1781542260000,-500.0,0.00034984,30]
[425133850,1781542260000,-151.0,0.00034984,30]
[425133845,1781542260000,-500.0,0.00034984,30]
[425133851,1781542260000,-518.5,0.00034984,30]
[425133854,1781542260000,-151.0,0.00034984,30]
[425133853,1781542260000,-500.0,0.00034984,30]
[425133861,1781542260000,-151.0,0.00034984,30]
[425133860,1781542260000,-497.64387602,0.00034984,30]
[425133859,1781542260000,-151.0,0.00034984,30]
[425133858,1781542260000,-151.0,0.00034984,30]
[425133852,1781542260000,-151.0,0.00034984,30]
[425133856,1781542260000,-500.0,0.00034984,30]
[425133862,1781542260000,-500.0,0.00034984,30]
[425133855,1781542260000,-500.0,0.00034984,30]
[425133857,1781542260000,-564.79493809,0.00034984,30]
[425133863,1781542261000,-500.0,0.00034984,30]
[425133864,1781542261000,-500.0,0.00034984,30]
[425133865,1781542261000,-151.0,0.00034984,30]
[425133867,1781542261000,-151.0,0.00034984,30]
[425133866,1781542261000,-500.0,0.00034984,30]
[425133868,1781542261000,-151.0,0.00034984,30]
[425133869,1781542261000,-500.0,0.00034984,30]
[425133870,1781542261000,-500.0,0.00034984,30]
[425133873,1781542261000,-151.0,0.00034984,30]
[425133871,1781542261000,-151.0,0.00034984,30]
[425133872,1781542261000,-151.0,0.00034984,30]
[425133882,1781542261000,-151.0,0.00034984,30]
[425133874,1781542261000,-500.0,0.00034984,30]
[425133881,1781542261000,-500.0,0.00034984,30]
[425133879,1781542261000,-500.0,0.00034984,30]
[425133880,1781542261000,-500.0,0.00034984,30]
[425133883,1781542261000,-151.0,0.00034984,30]
[425133878,1781542261000,-151.0,0.00034984,30]
[425133875,1781542261000,-500.0,0.00034984,30]
[425133876,1781542261000,-500.0,0.00034984,30]
[425133877,1781542261000,-151.0,0.00034984,30]
[425133892,1781542262000,-500.0,0.00034984,30]
[425133884,1781542262000,-500.0,0.00034984,30]
[425133885,1781542262000,-500.0,0.00034984,30]
[425133887,1781542262000,-500.0,0.00034984,30]
[425133886,1781542262000,-500.0,0.00034984,30]
[425133889,1781542262000,-151.0,0.00034984,30]
[425133888,1781542262000,-151.0,0.00034984,30]
[425133890,1781542262000,-500.0,0.00034984,30]
[425133894,1781542262000,-151.0,0.00034984,30]
[425133891,1781542262000,-500.0,0.00034984,30]
[425133893,1781542262000,-151.0,0.00034984,30]
[425133904,1781542262000,-500.0,0.00034984,30]
[425133903,1781542262000,-151.0,0.00034984,30]
[425133901,1781542262000,-500.0,0.00034984,30]
[425133902,1781542262000,-151.0,0.00034984,30]
[425133896,1781542262000,-500.0,0.00034984,30]
[425133899,1781542262000,-224.10071048,0.00034984,30]
[425133898,1781542262000,-151.0,0.00034984,30]
[425133897,1781542262000,-522.66331112,0.00034984,30]
[425133895,1781542262000,-500.0,0.00034984,30]
[425133900,1781542262000,-500.0,0.00034984,30]
[425133914,1781542263000,-151.0,0.00034984,30]
[425133906,1781542263000,-151.0,0.00034984,30]
[425133907,1781542263000,-151.0,0.00034984,30]
[425133908,1781542263000,-191.9644892,0.00034984,30]
[425133909,1781542263000,-500.0,0.00034984,30]
[425133910,1781542263000,-500.0,0.00034984,30]
[425133911,1781542263000,-151.0,0.00034984,30]
[425133912,1781542263000,-500.0,0.00034984,30]
[425133913,1781542263000,-500.0,0.00034984,30]
[425133905,1781542263000,-500.0,0.00034984,30]
[425133915,1781542263000,-500.0,0.00034984,30]
[425133917,1781542263000,-500.0,0.00034984,30]
[425133918,1781542263000,-151.0,0.00034984,30]
[425133919,1781542263000,-500.0,0.00034984,30]
[425133920,1781542263000,-500.0,0.00034984,30]
[425133921,1781542263000,-151.0,0.00034984,30]
[425133922,1781542263000,-500.0,0.00034984,30]
[425133923,1781542263000,-151.0,0.00034984,30]
[425133924,1781542263000,-500.0,0.00034984,30]
[425133925,1781542263000,-500.0,0.00034984,30]
[425133926,1781542263000,-151.0,0.00034984,30]
[425133916,1781542263000,-501.09889676,0.00034984,30]
[425133935,1781542264000,-1502.95324118,0.00036,60]
[425133933,1781542264000,-657.784135,0.00035616,30]
[425133934,1781542264000,-278.0,0.000359,120]
[425133932,1781542264000,-657.784135,0.00035616,30]
[425133927,1781542264000,-151.0,0.00034984,30]
[425133931,1781542264000,-657.784135,0.00035616,30]
[425133929,1781542264000,-151.0,0.00034984,30]
[425133928,1781542264000,-151.0,0.00034984,30]
[425133930,1781542264000,-657.784135,0.00035616,30]
[425133936,1781542264000,-5797.87814657,0.000361,30]
[425133937,1781542264000,-5797.87814655,0.000361,30]
[425133939,1781542264000,-183.15452536,0.000362,30]
[425133947,1781542264000,-4824408.62251656,0.000375,120]
[425133946,1781542264000,-278.0,0.000374,120]
[425133945,1781542264000,-200.0,0.0003736,30]
[425133944,1781542264000,-300.0,0.0003716,30]
[425133938,1781542264000,-5797.87814655,0.000361,30]
[425133943,1781542264000,-200.0,0.00037142,120]
[425133940,1781542264000,-183.15452535,0.000362,30]
[425133941,1781542264000,-278.0,0.000364,120]
[425133942,1781542264000,-278.0,0.000369,120]
[425133948,1781542265000,-5000000.0,0.000375,120]
[425133949,1781542265000,-5000000.0,0.000375,120]
[425133951,1781542265000,-10000.0,0.000375,120]
[425133952,1781542265000,-5000.0,0.000375,30]
[425133950,1781542265000,-150.0,0.000375,120]
[425133954,1781542265000,-200.0,0.000375,30]
[425133953,1781542265000,-500.0,0.000375,120]
[425133956,1781542265000,-150.0,0.000375,120]
[425133957,1781542265000,-271.79168,0.000375,30]
[425133955,1781542265000,-317.75,0.000375,120]
[425133959,1781542265000,-271.79168,0.000375,30]
[425133968,1781542265000,-169.702827,0.000375,30]
[425133965,1781542265000,-271.79168,0.000375,30]
[425133966,1781542265000,-169.702827,0.000375,30]
[425133964,1781542265000,-169.702827,0.000375,30]
[425133967,1781542265000,-271.79168,0.000375,30]
[425133962,1781542265000,-169.702827,0.000375,30]
[425133961,1781542265000,-271.79168,0.000375,30]
[425133960,1781542265000,-271.79168,0.000375,30]
[425133963,1781542265000,-271.79168,0.000375,30]
[425133958,1781542265000,-271.79168,0.000375,30]
[425133977,1781542266000,-271.79168,0.000375,30]
[425133969,1781542266000,-271.79168,0.000375,30]
[425133970,1781542266000,-169.702827,0.000375,30]
[425133971,1781542266000,-271.79168,0.000375,30]
[425133972,1781542266000,-169.702827,0.000375,30]
[425133973,1781542266000,-271.79168,0.000375,30]
[425133974,1781542266000,-169.702827,0.000375,30]
[425133975,1781542266000,-271.79168,0.000375,30]
[425133976,1781542266000,-169.702827,0.000375,30]
[425133978,1781542266000,-271.79168,0.000375,30]
[425133980,1781542266000,-271.79168,0.000375,30]
[425133989,1781542266000,-169.702832,0.000375,30]
[425133988,1781542266000,-151.0,0.000375,30]
[425133987,1781542266000,-169.702827,0.000375,30]
[425133986,1781542266000,-169.702827,0.000375,30]
[425133979,1781542266000,-169.702827,0.000375,30]
[425133985,1781542266000,-169.702827,0.000375,30]
[425133982,1781542266000,-271.791687,0.000375,30]
[425133983,1781542266000,-169.702827,0.000375,30]
[425133981,1781542266000,-169.702827,0.000375,30]
[425133984,1781542266000,-169.702827,0.000375,30]
[425133999,1781542267000,-171.122704,0.000375,30]
[425133990,1781542267000,-151.0,0.000375,30]
[425133993,1781542267000,-171.122704,0.000375,30]
[425133992,1781542267000,-163.710422,0.000375,30]
[425133994,1781542267000,-171.122704,0.000375,30]
[425133995,1781542267000,-171.122704,0.000375,30]
[425133996,1781542267000,-171.122704,0.000375,30]
[425133997,1781542267000,-171.122704,0.000375,30]
[425133998,1781542267000,-171.122704,0.000375,30]
[425133991,1781542267000,-171.122704,0.000375,30]
[425134000,1781542267000,-171.122704,0.000375,30]
[425134002,1781542267000,-171.122704,0.000375,30]
[425134003,1781542267000,-171.122704,0.000375,30]
[425134004,1781542267000,-171.122704,0.000375,30]
[425134006,1781542267000,-171.122704,0.000375,30]
[425134005,1781542267000,-171.122704,0.000375,30]
[425134007,1781542267000,-171.122713,0.000375,30]
[425134009,1781542267000,-1037.076023,0.000375,30]
[425134008,1781542267000,-226.637578,0.000375,30]
[425134010,1781542267000,-226.637578,0.000375,30]
[425134001,1781542267000,-171.122704,0.000375,30]
[425134019,1781542268000,-226.637578,0.000375,30]
[425134016,1781542268000,-1037.076023,0.000375,30]
[425134017,1781542268000,-226.637578,0.000375,30]
[425134015,1781542268000,-1037.076023,0.000375,30]
[425134011,1781542268000,-1037.076023,0.000375,30]
[425134018,1781542268000,-1037.076023,0.000375,30]
[425134013,1781542268000,-1037.076023,0.000375,30]
[425134012,1781542268000,-226.637578,0.000375,30]
[425134014,1781542268000,-226.637578,0.000375,30]
[425134021,1781542268000,-1037.076023,0.000375,30]
[425134029,1781542268000,-1037.076023,0.000375,30]
[425134022,1781542268000,-1037.076023,0.000375,30]
[425134020,1781542268000,-226.637578,0.000375,30]
[425134031,1781542268000,-1037.076023,0.000375,30]
[425134030,1781542268000,-226.637578,0.000375,30]
[425134028,1781542268000,-226.637578,0.000375,30]
[425134032,1781542268000,-226.637578,0.000375,30]
[425134026,1781542268000,-1037.076023,0.000375,30]
[425134025,1781542268000,-226.637578,0.000375,30]
[425134023,1781542268000,-226.637578,0.000375,30]
[425134024,1781542268000,-1037.076023,0.000375,30]
[425134027,1781542268000,-226.637578,0.000375,30]
[425134036,1781542269000,-1037.076023,0.000375,30]
[425134033,1781542269000,-226.637578,0.000375,30]
[425134035,1781542269000,-226.637578,0.000375,30]
[425134034,1781542269000,-1037.076023,0.000375,30]
[425134037,1781542269000,-226.637587,0.000375,30]
[425134038,1781542269000,-1037.076023,0.000375,30]
[425134039,1781542269000,-1037.076024,0.000375,30]
[425134041,1781542269000,-183.423669,0.000375,30]
[425134040,1781542269000,-151.0,0.000375,30]
[425134043,1781542269000,-183.423669,0.000375,30]
[425134042,1781542269000,-151.0,0.000375,30]
[425134045,1781542269000,-183.423669,0.000375,30]
[425134044,1781542269000,-151.0,0.000375,30]
[425134046,1781542270000,-151.0,0.000375,30]
[425134047,1781542270000,-163.695106,0.000375,30]
[425134048,1781542270000,-183.423669,0.000375,30]
[425134050,1781542270000,-151.0,0.000375,30]
[425134049,1781542270000,-151.0,0.000375,30]
[425134052,1781542270000,-195.994156,0.000375,30]
[425134053,1781542270000,-183.423669,0.000375,30]
[425134054,1781542270000,-183.423669,0.000375,30]
[425134055,1781542270000,-183.423669,0.000375,30]
[425134051,1781542270000,-183.423669,0.000375,30]
[425134058,1781542270000,-183.423669,0.000375,30]
[425134064,1781542270000,-151.0,0.000375,30]
[425134063,1781542270000,-183.423669,0.000375,30]
[425134061,1781542270000,-183.423669,0.000375,30]
[425134062,1781542270000,-151.0,0.000375,30]
[425134057,1781542270000,-183.423669,0.000375,30]
[425134059,1781542270000,-183.423669,0.000375,30]
[425134065,1781542270000,-183.423669,0.000375,30]
[425134056,1781542270000,-183.423669,0.000375,30]
[425134060,1781542270000,-183.423669,0.000375,30]
[425134075,1781542271000,-1512.028533,0.000375,30]
[425134067,1781542271000,-151.0,0.000375,30]
[425134069,1781542271000,-151.0,0.000375,30]
[425134068,1781542271000,-151.0,0.000375,30]
[425134070,1781542271000,-185.115259,0.000375,30]
[425134071,1781542271000,-1512.028533,0.000375,30]
[425134074,1781542271000,-1512.028533,0.000375,30]
[425134072,1781542271000,-1512.028533,0.000375,30]
[425134073,1781542271000,-1512.028533,0.000375,30]
[425134066,1781542271000,-151.0,0.000375,30]
[425134076,1781542271000,-1512.028533,0.000375,30]
[425134078,1781542271000,-1512.028533,0.000375,30]
[425134079,1781542271000,-1512.028533,0.000375,30]
[425134080,1781542271000,-151.0,0.000375,30]
[425134081,1781542271000,-185.126998,0.000375,30]
[425134082,1781542271000,-1512.028533,0.000375,30]
[425134083,1781542271000,-1512.028533,0.000375,30]
[425134084,1781542271000,-1512.028531,0.000375,30]
[425134085,1781542271000,-225.794998,0.000375,30]
[425134086,1781542271000,-171.914237,0.000375,30]
[425134077,1781542271000,-1512.028533,0.000375,30]
[425134094,1781542272000,-200.624177,0.000375,30]
[425134093,1781542272000,-200.624177,0.000375,30]
[425134092,1781542272000,-898.961585,0.000375,30]
[425134095,1781542272000,-200.624177,0.000375,30]
[425134090,1781542272000,-898.961585,0.000375,30]
[425134089,1781542272000,-200.624177,0.000375,30]
[425134088,1781542272000,-200.624177,0.000375,30]
[425134091,1781542272000,-898.961585,0.000375,30]
[425134096,1781542272000,-898.961585,0.000375,30]
[425134087,1781542272000,-200.624177,0.000375,30]
[425134099,1781542272000,-200.624177,0.000375,30]
[425134107,1781542272000,-898.961585,0.000375,30]
[425134105,1781542272000,-200.624177,0.000375,30]
[425134106,1781542272000,-200.624177,0.000375,30]
[425134104,1781542272000,-898.961585,0.000375,30]
[425134097,1781542272000,-898.961585,0.000375,30]
[425134102,1781542272000,-200.624177,0.000375,30]
[425134101,1781542272000,-898.961585,0.000375,30]
[425134100,1781542272000,-200.624177,0.000375,30]
[425134098,1781542272000,-898.961585,0.000375,30]
[425134103,1781542272000,-898.961585,0.000375,30]
[425134116,1781542273000,-380.690687,0.000375,30]
[425134108,1781542273000,-200.624177,0.000375,30]
[425134110,1781542273000,-898.961584,0.000375,30]
[425134109,1781542273000,-898.961585,0.000375,30]
[425134111,1781542273000,-380.690687,0.000375,30]
[425134112,1781542273000,-380.690687,0.000375,30]
[425134113,1781542273000,-380.690687,0.000375,30]
[425134115,1781542273000,-380.690687,0.000375,30]
[425134114,1781542273000,-380.690687,0.000375,30]
[425134117,1781542273000,-380.690687,0.000375,30]
[425134119,1781542273000,-151.0,0.000375,30]
[425134128,1781542273000,-151.0,0.000375,30]
[425134121,1781542273000,-151.0,0.000375,30]
[425134120,1781542273000,-380.690687,0.000375,30]
[425134122,1781542273000,-151.0,0.000375,30]
[425134123,1781542273000,-380.690687,0.000375,30]
[425134124,1781542273000,-380.690687,0.000375,30]
[425134125,1781542273000,-151.0,0.000375,30]
[425134126,1781542273000,-380.690694,0.000375,30]
[425134127,1781542273000,-151.0,0.000375,30]
[425134118,1781542273000,-380.690687,0.000375,30]
[425134129,1781542273000,-151.0,0.000375,30]
[425134137,1781542274000,-151.0,0.000375,30]
[425134136,1781542274000,-151.0,0.000375,30]
[425134134,1781542274000,-151.0,0.000375,30]
[425134138,1781542274000,-151.0,0.000375,30]
[425134133,1781542274000,-151.0,0.000375,30]
[425134131,1781542274000,-151.0,0.000375,30]
[425134130,1781542274000,-192.427516,0.000375,30]
[425134132,1781542274000,-151.0,0.000375,30]
[425134139,1781542274000,-151.0,0.000375,30]
[425134135,1781542274000,-151.0,0.000375,30]
[425134141,1781542274000,-151.0,0.000375,30]
[425134140,1781542274000,-151.0,0.000375,30]
[425134149,1781542274000,-301.136886,0.000375,30]
[425134147,1781542274000,-301.136886,0.000375,30]
[425134148,1781542274000,-151.0,0.000375,30]
[425134150,1781542274000,-151.0,0.000375,30]
[425134145,1781542274000,-151.0,0.000375,30]
[425134144,1781542274000,-151.0,0.000375,30]
[425134142,1781542274000,-151.0,0.000375,30]
[425134143,1781542274000,-151.0,0.000375,30]
[425134146,1781542274000,-301.136886,0.000375,30]
[425134159,1781542275000,-301.136886,0.000375,30]
[425134152,1781542275000,-301.136886,0.000375,30]
[425134151,1781542275000,-151.0,0.000375,30]
[425134153,1781542275000,-301.136886,0.000375,30]
[425134154,1781542275000,-151.0,0.000375,30]
[425134155,1781542275000,-301.136886,0.000375,30]
[425134158,1781542275000,-301.136886,0.000375,30]